fUSD/lending_fUSD_20240419
["ID","MTS","AMOUNT","RATE_DAILY","PERIOD"]
[322962024,1713547877315,-500.0,0.00014246,2]
[322962025,1713547877325,-4923.85,0.00014246,2]
[322962026,1713547877335,-500.0,0.00014246,2]
[322962027,1713547877346,-1801.44,0.00014246,2]
[322962028,1713547877356,-4779.03,0.00014246,2]
[322962029,1713547877366,-1954.87,0.00014246,2]
[322962030,1713547877376,-1554.88,0.00014246,2]
[322962031,1713547877389,-1770.16,0.00014246,2]
[322962032,1713547877399,-638.45,0.00014246,2]
[322962033,1713547877409,-500.0,0.00014246,2]
[322962034,1713547877419,-2684.17,0.00014246,2]
[322962035,1713547877429,-746.73,0.00014246,2]
[322962036,1713547877442,-500.0,0.00014246,2]
[322962037,1713547877451,-678.26,0.00014246,2]
[322962038,1713547877461,-512.19,0.00014246,2]
[322962039,1713547877471,-500.0,0.00014246,2]
[322962040,1713547877482,-1504.54,0.00014246,2]
[322962041,1713547877491,-3655.54,0.00014246,2]
[322962042,1713547877501,-8067.16,0.00014246,2]
[322962043,1713547877512,-1114.62,0.00014246,2]
[322962044,1713547877524,-2012.53,0.00014246,2]
[322962045,1713547877535,-558.22,0.00014246,2]
[322962046,1713547877545,-1607.78,0.00014246,2]
[322962047,1713547877555,-1500.58,0.00014246,2]
[322962048,1713547877565,-500.0,0.00014246,2]
[322962049,1713547877575,-500.0,0.00014246,2]
[322962050,1713547877586,-522.378762,0.00014246,2]
[322962051,1713547877596,-3418.9,0.00014246,2]
[322962052,1713547877606,-3071.89,0.00014246,2]
[322962053,1713547877616,-500.0,0.00014246,2]
[322962054,1713547877626,-500.0,0.00014246,2]
[322962055,1713547877642,-1792.81,0.00014246,2]
[322962056,1713547877651,-500.0,0.00014246,2]
[322962057,1713547877661,-500.0,0.00014246,2]
[322962058,1713547877671,-640.41341899,0.00014246,2]
[322962059,1713547877681,-1114.52,0.00014246,2]
[322962060,1713547877691,-2342.52,0.00014246,2]
[322962061,1713547877701,-27431.3,0.00014246,2]
[322962062,1713547877711,-500.0,0.00014246,2]
[322962063,1713547877722,-532.06,0.00014246,2]
[322962064,1713547877732,-685.87,0.00014246,2]
[322962065,1713547877742,-5407.88,0.00014246,2]
[322962066,1713547877751,-8673.57,0.00014246,2]
[322962067,1713547877761,-974.72,0.00014246,2]
[322962068,1713547877771,-500.0,0.00014246,2]
[322962069,1713547877782,-1450.35,0.00014246,2]
[322962070,1713547877791,-1683.58,0.00014246,2]
[322962071,1713547877801,-500.0,0.00014246,2]
[322962072,1713547877811,-500.0,0.00014246,2]
[322962073,1713547877820,-500.0,0.00014246,2]
[322962074,1713547877830,-500.0,0.00014246,2]
[322962075,1713547877839,-500.0,0.00014246,2]
[322962076,1713547877849,-500.0,0.00014246,2]
[322962077,1713547877859,-4332.15,0.00014246,2]
[322962078,1713547877869,-639.7,0.00014246,2]
[322962079,1713547877883,-1237.51,0.00014246,2]
[322962080,1713547877892,-1182.46,0.00014246,2]
[322962081,1713547877902,-2597.97,0.00014246,2]
[322962082,1713547877913,-15683.86,0.00014246,2]
[322962083,1713547877922,-3651.9,0.00014246,2]
[322962084,1713547877932,-2382.29,0.00014246,2]
[322962085,1713547877942,-7128.78,0.00014246,2]
[322962086,1713547877952,-500.44,0.00014246,2]
[322962087,1713547877962,-500.0,0.00014246,2]
[322962088,1713547877972,-500.0,0.00014246,2]
[322962089,1713547877982,-906.78,0.00014246,2]
[322962090,1713547877992,-936.01,0.00014246,2]
[322962091,1713547878002,-3390.69,0.00014246,2]
[322962092,1713547878012,-894.61,0.00014246,2]
[322962093,1713547878022,-500.0,0.00014246,2]
[322962094,1713547878032,-500.0,0.00014246,2]
[322962095,1713547878043,-500.0,0.00014246,2]
[322962096,1713547878053,-500.0,0.00014246,2]
[322962097,1713547878063,-1236.23,0.00014246,2]
[322962098,1713547878073,-500.0,0.00014246,2]
[322962099,1713547878083,-438.73221204,0.00014248,2]
[322962100,1713547878094,-166.64,0.00014294,2]
[322962101,1713547878104,-2600.78644205,0.00014339,2]
[322962102,1713547878114,-2704.0,0.00014383,2]
[322962103,1713547878124,-37669.0,0.00014383,2]
[322962104,1713547878141,-1228.0,0.00014383,2]
[322962105,1713547878151,-1255.0,0.00014383,2]
[322962106,1713547878162,-25448.16585625,0.00014394,2]
[322962107,1713547878172,-1551.0,0.00014493,2]
[322962108,1713547878182,-518.0,0.00014493,2]
[322962109,1713547878192,-300.0,0.00014519,2]
[322962110,1713547878201,-500.0,0.0001452,2]
[322962111,1713547878211,-224.25796725,0.0001452,2]
[322962112,1713547878221,-500.0,0.0001452,2]
[322962113,1713547878231,-500.0,0.0001452,2]
[322962114,1713547878241,-500.0,0.0001452,2]
[322962115,1713547878251,-631.12734414,0.0001452,2]
[322962116,1713547878262,-2110.51,0.0001452,2]
[322962117,1713547878272,-587.44,0.0001452,2]
[322962118,1713547878281,-885.07,0.0001452,2]
[322962119,1713547878292,-533.25,0.0001452,2]
[322962120,1713547878301,-500.0,0.0001452,2]
[322962121,1713547878311,-345.97220684,0.0001452,2]
[322962122,1713547878321,-588.52,0.0001452,2]
[322962123,1713547878332,-500.0,0.0001452,2]
[322962124,1713547878343,-688.61,0.0001452,2]
[322962125,1713547878353,-500.0,0.0001452,2]
[322962126,1713547878363,-500.0,0.0001452,2]
[322962127,1713547878372,-1128.42,0.0001452,2]
[322962128,1713547878388,-1405.03,0.0001452,2]
[322962129,1713547878398,-676.86,0.0001452,2]
[322962130,1713547878408,-507.93,0.0001452,2]
[322962131,1713547878417,-1724.21,0.0001452,2]
[322962132,1713547878431,-500.0,0.0001452,2]
[322962133,1713547878441,-853.04,0.0001452,2]
[322962134,1713547878451,-500.52836891,0.0001452,2]
[322962135,1713547878461,-1185.05,0.0001452,2]
[322962136,1713547878474,-500.0,0.0001452,2]
[322962137,1713547878484,-500.0,0.0001452,2]
[322962138,1713547878493,-868.94,0.0001452,2]
[322962139,1713547878503,-500.0,0.0001452,2]
[322962140,1713547878513,-649.32,0.0001452,2]
[322962141,1713547878522,-500.0,0.0001452,2]
[322962142,1713547878532,-783.57,0.0001452,2]
[322962143,1713547878541,-945.56,0.0001452,2]
[322962144,1713547878551,-2494.46,0.0001452,2]
[322962145,1713547878561,-500.0,0.0001452,2]
[322962146,1713547878570,-636.73,0.0001452,2]
[322962147,1713547878580,-500.0,0.0001452,2]
[322962148,1713547878589,-500.0,0.0001452,2]
[322962149,1713547878599,-500.0,0.0001452,2]
[322962150,1713547878609,-500.0,0.0001452,2]
[322962151,1713547878619,-500.0,0.0001452,2]
[322962152,1713547878631,-859.12,0.0001452,2]
[322962153,1713547878641,-500.0,0.0001452,2]
[322962154,1713547878651,-500.0,0.0001452,2]
[322962155,1713547878661,-313.66725937,0.0001452,2]
[322962156,1713547878672,-690.43,0.0001452,2]
[322962157,1713547878681,-1352.48,0.0001452,2]
[322962158,1713547878691,-720.67,0.0001452,2]
[322962159,1713547878701,-1996.03,0.0001452,2]
[322962160,1713547878710,-823.18,0.0001452,2]
[322962161,1713547878720,-686.86,0.0001452,2]
[322962162,1713547878729,-1738.27,0.0001452,2]
[322962163,1713547878961,-791.6,0.0001452,2]
[322962164,1713547878972,-500.0,0.0001452,2]
[322962165,1713547878982,-693.35,0.0001452,2]
[322962166,1713547878992,-1572.34,0.0001452,2]
[322962167,1713547879001,-500.0,0.0001452,2]
[322962168,1713547879011,-500.0,0.0001452,2]
[322962169,1713547879021,-500.0,0.0001452,2]
[322962170,1713547879031,-508.11,0.0001452,2]
[322962171,1713547879040,-500.0,0.0001452,2]
[322962172,1713547879050,-818.65,0.0001452,2]
[322962173,1713547879059,-500.0,0.0001452,2]
[322962174,1713547879068,-813.18,0.0001452,2]
[322962175,1713547879078,-640.53927703,0.0001452,2]
[322962176,1713547879087,-734.58,0.0001452,2]
[322962177,1713547879096,-500.0,0.0001452,2]
[322962178,1713547879105,-500.0,0.0001452,2]
[322962179,1713547879114,-1007.18,0.0001452,2]
[322962180,1713547879124,-702.98,0.0001452,2]
[322962181,1713547879137,-500.0,0.0001452,2]
[322962182,1713547879147,-500.0,0.0001452,2]
[322962183,1713547879156,-953.8,0.0001452,2]
[322962184,1713547879165,-732.08,0.0001452,2]
[322962185,1713547879175,-1109.36,0.0001452,2]
[322962186,1713547879185,-500.0,0.0001452,2]
[322962187,1713547879194,-587.33,0.0001452,2]
[322962188,1713547879203,-500.0,0.0001452,2]
[322962189,1713547879212,-500.0,0.0001452,2]
[322962190,1713547879221,-500.0,0.0001452,2]
[322962191,1713547879231,-500.0,0.0001452,2]
[322962192,1713547879241,-636.51,0.0001452,2]
[322962193,1713547879250,-428.60947455,0.0001452,2]
[322962194,1713547879260,-533.92,0.0001452,2]
[322962195,1713547879270,-616.51,0.0001452,2]
[322962196,1713547879279,-500.0,0.0001452,2]
[322962197,1713547879289,-633.07,0.0001452,2]
[322962198,1713547879298,-760.02,0.0001452,2]
[322962199,1713547879307,-500.0,0.0001452,2]
[322962200,1713547879317,-298.39339498,0.0001452,2]
[322962201,1713547879327,-500.0,0.0001452,2]
[322962202,1713547879336,-799.71,0.0001452,2]
[322962203,1713547879346,-500.0,0.0001452,2]
[322962204,1713547879355,-1421.13,0.0001452,2]
[322962205,1713547879365,-779.79,0.0001452,2]
[322962206,1713547879374,-1371.73,0.0001452,2]
[322962207,1713547879390,-731.74,0.0001452,2]
[322962208,1713547879400,-500.0,0.0001452,2]
[322962209,1713547879413,-1433.68,0.0001452,2]
[322962210,1713547879455,-500.0,0.0001452,2]
[322962211,1713547879465,-500.0,0.0001452,2]
[322962212,1713547879476,-500.0,0.0001452,2]
[322962213,1713547879486,-611.22,0.0001452,2]
[322962214,1713547879495,-587.6,0.0001452,2]
[322962215,1713547879504,-802.08,0.0001452,2]
[322962216,1713547879514,-800.51,0.0001452,2]
[322962217,1713547879524,-570.42,0.0001452,2]
[322962218,1713547879535,-545.49,0.0001452,2]
[322962219,1713547879544,-894.82,0.0001452,2]
[322962220,1713547879554,-622.53,0.0001452,2]
[322962221,1713547879564,-665.31,0.0001452,2]
[322962222,1713547879574,-500.0,0.0001452,2]
[322962223,1713547879584,-500.0,0.0001452,2]
[322962224,1713547879593,-500.0,0.0001452,2]
[322962225,1713547879603,-500.0,0.0001452,2]
[322962226,1713547879612,-500.0,0.0001452,2]
[322962227,1713547879622,-1548.19,0.0001452,2]
[322962228,1713547879634,-500.0,0.0001452,2]
[322962229,1713547879643,-1402.68,0.0001452,2]
[322962230,1713547879653,-696.4,0.0001452,2]
[322962231,1713547879662,-500.0,0.0001452,2]
[322962232,1713547879671,-500.0,0.0001452,2]
[322962233,1713547879680,-667.78,0.0001452,2]
[322962234,1713547879689,-1817.86,0.0001452,2]
[322962235,1713547879699,-1854.53,0.0001452,2]
[322962236,1713547879708,-1323.45,0.0001452,2]
[322962237,1713547879717,-500.0,0.0001452,2]
[322962238,1713547879726,-500.0,0.0001452,2]
[322962239,1713547879735,-500.0,0.0001452,2]
[322962240,1713547879744,-657.97,0.0001452,2]
[322962241,1713547879754,-500.0,0.0001452,2]
[322962242,1713547879763,-500.0,0.0001452,2]
[322962243,1713547879772,-500.0,0.0001452,2]
[322962244,1713547879781,-500.0,0.0001452,2]
[322962245,1713547879790,-500.0,0.0001452,2]
[322962246,1713547879799,-692.84,0.0001452,2]
[322962247,1713547879808,-500.0,0.0001452,2]
[322962248,1713547879817,-500.0,0.0001452,2]
[322962249,1713547879828,-525.97,0.0001452,2]
[322962250,1713547879838,-510.55,0.0001452,2]
[322962251,1713547879847,-500.0,0.0001452,2]
[322962252,1713547879855,-951.28,0.0001452,2]
[322962253,1713547879865,-500.0,0.0001452,2]
[322962254,1713547879874,-500.0,0.0001452,2]
[322962255,1713547879887,-839.77,0.0001452,2]
[322962256,1713547879896,-1185.12,0.0001452,2]
[322962257,1713547879905,-2157.71,0.0001452,2]
[322962258,1713547879914,-500.0,0.0001452,2]
[322962259,1713547879924,-500.0,0.0001452,2]
[322962260,1713547879934,-1409.98,0.0001452,2]
[322962261,1713547879943,-1042.32,0.0001452,2]
[322962262,1713547879952,-1175.16,0.0001452,2]
[322962263,1713547879962,-848.63,0.0001452,2]
[322962264,1713547879971,-1187.74,0.0001452,2]
[322962265,1713547879981,-500.0,0.0001452,2]
[322962266,1713547879990,-1924.82,0.0001452,2]
[322962267,1713547879999,-500.0,0.0001452,2]
[322962268,1713547880008,-500.0,0.0001452,2]
[322962269,1713547880019,-1021.09,0.0001452,2]
[322962270,1713547880028,-500.0,0.0001452,2]
[322962271,1713547880037,-1045.54,0.0001452,2]
[322962272,1713547880046,-500.0,0.0001452,2]
[322962273,1713547880056,-2634.28,0.0001452,2]
[322962274,1713547880066,-500.0,0.0001452,2]
[322962275,1713547880076,-1262.88,0.0001452,2]
[322962276,1713547880086,-1166.31,0.0001452,2]
[322962277,1713547880096,-500.0,0.0001452,2]
[322962278,1713547880106,-1332.33,0.0001452,2]
[322962279,1713547880115,-500.0,0.0001452,2]
[322962280,1713547880124,-712.59,0.0001452,2]
[322962281,1713547880138,-536.28,0.0001452,2]
[322962282,1713547880147,-791.73,0.0001452,2]
[322962283,1713547880157,-1210.59,0.0001452,2]
[322962284,1713547880167,-500.0,0.0001452,2]
[322962285,1713547880177,-1285.96,0.0001452,2]
[322962286,1713547880186,-299.15,0.0001452,2]
[322962287,1713547880195,-500.0,0.0001452,2]
[322962288,1713547880204,-500.0,0.0001452,2]
[322962289,1713547880214,-500.0,0.0001452,2]
[322962290,1713547880224,-500.0,0.0001452,2]
[322962291,1713547880234,-500.0,0.0001452,2]
[322962292,1713547880243,-930.65,0.0001452,2]
[322962293,1713547880252,-707.96,0.0001452,2]
[322962294,1713547880261,-500.0,0.0001452,2]
[322962295,1713547880270,-876.01,0.0001452,2]
[322962296,1713547880280,-1043.23,0.0001452,2]
[322962297,1713547880289,-500.0,0.0001452,2]
[322962298,1713547880299,-500.0,0.0001452,2]
[322962299,1713547880308,-500.0,0.0001452,2]
[322962300,1713547880317,-500.0,0.0001452,2]
[322962301,1713547880326,-1932.47,0.0001452,2]
[322962302,1713547880335,-943.25,0.0001452,2]
[322962303,1713547880345,-591.53,0.0001452,2]
[322962304,1713547880354,-607.58745858,0.0001452,2]
[322962305,1713547880363,-500.0,0.0001452,2]
[322962306,1713547880372,-500.0,0.0001452,2]
[322962307,1713547880387,-500.0,0.0001452,2]
[322962308,1713547880397,-500.0,0.0001452,2]
[322962309,1713547880408,-508.04,0.0001452,2]
[322962310,1713547880418,-500.0,0.0001452,2]
[322962311,1713547880432,-667.44,0.0001452,2]
[322962312,1713547880443,-500.0,0.0001452,2]
[322962313,1713547880453,-1005.79,0.0001452,2]
[322962314,1713547880463,-336.67580252,0.0001452,2]
[322962315,1713547880474,-1151.58,0.0001452,2]
[322962316,1713547880483,-666.71,0.0001452,2]
[322962317,1713547880493,-500.0,0.0001452,2]
[322962318,1713547880503,-844.29,0.0001452,2]
[322962319,1713547880512,-859.59,0.0001452,2]
[322962320,1713547880524,-827.06,0.0001452,2]
[322962321,1713547880533,-909.02,0.0001452,2]
[322962322,1713547880543,-500.0,0.0001452,2]
[322962323,1713547880552,-500.0,0.0001452,2]
[322962324,1713547880561,-500.0,0.0001452,2]
[322962325,1713547880571,-3128.94,0.0001452,2]
[322962326,1713547880580,-1084.83,0.0001452,2]
[322962327,1713547880590,-849.87,0.0001452,2]
[322962328,1713547880599,-165.04,0.0001452,2]
[322962329,1713547880609,-583.71509097,0.0001452,2]
[322962330,1713547880618,-500.0,0.0001452,2]
[322962331,1713547880628,-500.0,0.0001452,2]
[322962332,1713547880645,-962.42,0.0001452,2]
[322962333,1713547880654,-500.0,0.0001452,2]
[322962334,1713547880664,-500.0,0.0001452,2]
[322962335,1713547880674,-500.0,0.0001452,2]
[322962336,1713547880684,-500.0,0.0001452,2]
[322962337,1713547880693,-500.0,0.0001452,2]
[322962338,1713547880703,-500.0,0.0001452,2]
[322962339,1713547880713,-500.0,0.0001452,2]
[322962340,1713547880722,-1106.42,0.0001452,2]
[322962341,1713547880732,-710.41,0.0001452,2]
[322962342,1713547880741,-533.1,0.0001452,2]
[322962343,1713547880750,-860.99,0.0001452,2]
[322962344,1713547880760,-500.0,0.0001452,2]
[322962345,1713547880769,-1532.66,0.0001452,2]
[322962346,1713547880779,-1058.74,0.0001452,2]
[322962347,1713547880788,-500.0,0.0001452,2]
[322962348,1713547880798,-500.0,0.0001452,2]
[322962349,1713547880807,-500.0,0.0001452,2]
[322962350,1713547880817,-1991.95,0.0001452,2]
[322962351,1713547880826,-917.22,0.0001452,2]
[322962352,1713547880835,-1677.63,0.0001452,2]
[322962353,1713547880845,-500.0,0.0001452,2]
[322962354,1713547880854,-1495.03,0.0001452,2]
[322962355,1713547880863,-500.0,0.0001452,2]
[322962356,1713547880872,-500.0,0.0001452,2]
[322962357,1713547880883,-1437.08,0.0001452,2]
[322962358,1713547880893,-1221.32,0.0001452,2]
[322962359,1713547880902,-894.68,0.0001452,2]
[322962360,1713547880912,-500.0,0.0001452,2]
[322962361,1713547880921,-500.0,0.0001452,2]
[322962362,1713547880931,-500.0,0.0001452,2]
[322962363,1713547880940,-500.0,0.0001452,2]
[322962364,1713547880951,-1958.47,0.0001452,2]
[322962365,1713547880961,-2134.27,0.0001452,2]
[322962366,1713547880970,-1468.38,0.0001452,2]
[322962367,1713547880980,-1385.58,0.0001452,2]
[322962368,1713547880989,-500.0,0.0001452,2]
[322962369,1713547880998,-1055.95,0.0001452,2]
[322962370,1713547881008,-500.0,0.0001452,2]
[322962371,1713547881018,-850.7,0.0001452,2]
[322962372,1713547881027,-500.0,0.0001452,2]
[322962373,1713547881037,-500.0,0.0001452,2]
[322962374,1713547881046,-1613.06,0.0001452,2]
[322962375,1713547881055,-1869.43,0.0001452,2]
[322962376,1713547881064,-927.53,0.0001452,2]
[322962377,1713547881073,-500.0,0.0001452,2]
[322962378,1713547881082,-1137.3,0.0001452,2]
[322962379,1713547881092,-1531.48,0.0001452,2]
[322962380,1713547881101,-729.51,0.0001452,2]
[322962381,1713547881111,-867.54,0.0001452,2]
[322962382,1713547881120,-500.0,0.0001452,2]
[322962383,1713547881129,-591.76,0.0001452,2]
[322962384,1713547881139,-500.0,0.0001452,2]
[322962385,1713547881148,-918.65,0.0001452,2]
[322962386,1713547881157,-500.0,0.0001452,2]
[322962387,1713547881166,-500.0,0.0001452,2]
[322962388,1713547881175,-2570.17,0.0001452,2]
[322962389,1713547881184,-500.0,0.0001452,2]
[322962390,1713547881194,-1851.41,0.0001452,2]
[322962391,1713547881203,-500.0,0.0001452,2]
[322962392,1713547881212,-500.0,0.0001452,2]
[322962393,1713547881222,-500.0,0.0001452,2]
[322962394,1713547881231,-500.0,0.0001452,2]
[322962395,1713547881241,-372.21669263,0.0001452,2]
[322962396,1713547881250,-717.49,0.0001452,2]
[322962397,1713547881260,-1190.81,0.0001452,2]
[322962398,1713547881269,-960.45,0.0001452,2]
[322962399,1713547881278,-500.0,0.0001452,2]
[322962400,1713547881287,-549.94,0.0001452,2]
[322962401,1713547881297,-1956.81,0.0001452,2]
[322962402,1713547881306,-554.18228613,0.0001452,2]
[322962403,1713547881315,-500.0,0.0001452,2]
[322962404,1713547881325,-765.42,0.0001452,2]
[322962405,1713547881334,-739.43,0.0001452,2]
[322962406,1713547881344,-500.0,0.0001452,2]
[322962407,1713547881353,-1398.96,0.0001452,2]
[322962408,1713547881363,-1685.66,0.0001452,2]
[322962409,1713547881373,-500.0,0.0001452,2]
[322962410,1713547881384,-2103.77,0.0001452,2]
[322962411,1713547881393,-500.0,0.0001452,2]
[322962412,1713547881402,-500.0,0.0001452,2]
[322962413,1713547881412,-1256.68,0.0001452,2]
[322962414,1713547881422,-500.0,0.0001452,2]
[322962415,1713547881432,-1117.43,0.0001452,2]
[322962416,1713547881445,-1052.85,0.0001452,2]
[322962417,1713547881455,-1921.77,0.0001452,2]
[322962418,1713547881464,-772.1,0.0001452,2]
[322962419,1713547881474,-500.0,0.0001452,2]
[322962420,1713547881484,-500.0,0.0001452,2]
[322962421,1713547881493,-631.7,0.0001452,2]
[322962422,1713547881503,-2964.49,0.0001452,2]
[322962423,1713547881513,-500.0,0.0001452,2]
[322962424,1713547881522,-1253.8,0.0001452,2]
[322962425,1713547881531,-1378.32,0.0001452,2]
[322962426,1713547881541,-807.54,0.0001452,2]
[322962427,1713547881551,-1081.19,0.0001452,2]
[322962428,1713547881560,-815.96,0.0001452,2]
[322962429,1713547881569,-1049.59,0.0001452,2]
[322962430,1713547881579,-741.66,0.0001452,2]
[322962431,1713547881589,-1845.52,0.0001452,2]
[322962432,1713547881599,-500.0,0.0001452,2]
[322962433,1713547881609,-2620.88,0.0001452,2]
[322962434,1713547881619,-1780.73,0.0001452,2]
[322962435,1713547881629,-2723.48,0.0001452,2]
[322962436,1713547881643,-1417.69,0.0001452,2]
[322962437,1713547881654,-1358.87,0.0001452,2]
[322962438,1713547881670,-552.72,0.0001452,2]
[322962439,1713547881680,-500.0,0.0001452,2]
[322962440,1713547881690,-500.0,0.0001452,2]
[322962441,1713547881700,-500.0,0.0001452,2]
[322962442,1713547881710,-735.73,0.0001452,2]
[322962443,1713547881720,-1288.14,0.0001452,2]
[322962444,1713547881730,-500.0,0.0001452,2]
[322962445,1713547881739,-504.98,0.0001452,2]
[322962446,1713547881749,-1067.84,0.0001452,2]
[322962447,1713547881759,-1255.87,0.0001452,2]
[322962448,1713547881769,-500.0,0.0001452,2]
[322962449,1713547881779,-500.0,0.0001452,2]
[322962450,1713547881789,-1672.8,0.0001452,2]
[322962451,1713547881799,-1584.31,0.0001452,2]
[322962452,1713547881808,-500.0,0.0001452,2]
[322962453,1713547881818,-500.0,0.0001452,2]
[322962454,1713547881828,-1836.33,0.0001452,2]
[322962455,1713547881838,-537.61,0.0001452,2]
[322962456,1713547881848,-500.0,0.0001452,2]
[322962457,1713547881857,-709.72,0.0001452,2]
[322962458,1713547881867,-500.0,0.0001452,2]
[322962459,1713547881877,-500.0,0.0001452,2]
[322962460,1713547881891,-1262.36,0.0001452,2]
[322962461,1713547881901,-500.0,0.0001452,2]
[322962462,1713547881910,-1342.14,0.0001452,2]
[322962463,1713547881920,-907.63,0.0001452,2]
[322962464,1713547881929,-2176.51,0.0001452,2]
[322962465,1713547881939,-500.0,0.0001452,2]
[322962466,1713547881948,-1204.36,0.0001452,2]
[322962467,1713547881957,-2283.41,0.0001452,2]
[322962468,1713547881966,-567.88,0.0001452,2]
[322962469,1713547881975,-669.36,0.0001452,2]
[322962470,1713547881984,-500.0,0.0001452,2]
[322962471,1713547881994,-984.59,0.0001452,2]
[322962472,1713547882004,-782.81,0.0001452,2]
[322962473,1713547882014,-533.61,0.0001452,2]
[322962474,1713547882024,-1288.58,0.0001452,2]
[322962475,1713547882033,-500.0,0.0001452,2]
[322962476,1713547882042,-749.22,0.0001452,2]
[322962477,1713547882052,-500.0,0.0001452,2]
[322962478,1713547882062,-1347.98,0.0001452,2]
[322962479,1713547882072,-500.0,0.0001452,2]
[322962480,1713547882082,-1496.13,0.0001452,2]
[322962481,1713547882091,-776.56,0.0001452,2]
[322962482,1713547882101,-1096.01,0.0001452,2]
[322962483,1713547882110,-500.0,0.0001452,2]
[322962484,1713547882120,-500.0,0.0001452,2]
[322962485,1713547882129,-969.2,0.0001452,2]
[322962486,1713547882143,-1194.99,0.0001452,2]
[322962487,1713547882153,-1621.12,0.0001452,2]
[322962488,1713547882163,-1157.29,0.0001452,2]
[322962489,1713547882173,-573.44,0.0001452,2]
[322962490,1713547882183,-1092.41,0.0001452,2]
[322962491,1713547882192,-500.0,0.0001452,2]
[322962492,1713547882202,-984.48,0.0001452,2]
[322962493,1713547882211,-1606.09,0.0001452,2]
[322962494,1713547882220,-500.0,0.0001452,2]
[322962495,1713547882231,-509.93,0.0001452,2]
[322962496,1713547882240,-2406.42,0.0001452,2]
[322962497,1713547882466,-500.0,0.0001452,2]
[322962498,1713547882478,-2066.12,0.0001452,2]
[322962499,1713547882487,-500.0,0.0001452,2]
[322962500,1713547882497,-500.0,0.0001452,2]
[322962501,1713547882507,-1808.05,0.0001452,2]
[322962502,1713547882516,-500.0,0.0001452,2]
[322962503,1713547882526,-500.0,0.0001452,2]
[322962504,1713547882535,-1231.43,0.0001452,2]
[322962505,1713547882544,-1260.52,0.0001452,2]
[322962506,1713547882555,-500.0,0.0001452,2]
[322962507,1713547882564,-1235.4,0.0001452,2]
[322962508,1713547882573,-531.33,0.0001452,2]
[322962509,1713547882583,-599.56,0.0001452,2]
[322962510,1713547882592,-1097.83,0.0001452,2]
[322962511,1713547882602,-2567.39,0.0001452,2]
[322962512,1713547882612,-625.82,0.0001452,2]
[322962513,1713547882622,-500.0,0.0001452,2]
[322962514,1713547882634,-1521.18,0.0001452,2]
[322962515,1713547882642,-737.68,0.0001452,2]
[322962516,1713547882652,-500.0,0.0001452,2]
[322962517,1713547882661,-500.0,0.0001452,2]
[322962518,1713547882670,-1429.5,0.0001452,2]
[322962519,1713547882679,-218.99,0.0001452,2]
[322962520,1713547882689,-500.0,0.0001452,2]
[322962521,1713547882699,-500.0,0.0001452,2]
[322962522,1713547882708,-500.0,0.0001452,2]
[322962523,1713547882718,-609.78,0.0001452,2]